bitfinex-derivatives/quotes_BTCF0:USTF0_20241130
["timestamp","ask_amount","ask_price","bid_price","bid_amount"]
[1732929219087,0.00608332,96856.0,96855.0,0.06364752]
[1732929219276,0.00208332,96856.0,96855.0,0.06364752]
[1732929219473,0.00208332,96856.0,96855.0,0.07297452]
[1732929219882,0.00208332,96856.0,96855.0,0.1065348]
[1732929220288,0.0306,96868.0,96867.0,0.051594]
[1732929220484,0.04273354,96868.0,96867.0,0.05621844]
[1732929221378,0.0428313,96868.0,96867.0,0.05621844]
[1732929221982,9.776e-05,96868.0,96867.0,0.05621844]
[1732929222376,0.00309776,96868.0,96867.0,0.06368036]
[1732929222691,0.00409776,96868.0,96867.0,0.05721844]
[1732929223284,0.00409776,96868.0,96867.0,0.057297]
[1732929223983,0.00409776,96868.0,96867.0,0.184817]
[1732929224495,0.00409776,96868.0,96867.0,0.21837297]
[1732929225984,0.00409776,96868.0,96867.0,0.57917297]
[1732929226493,0.00409776,96868.0,96867.0,0.82598262]
[1732929226685,0.00409776,96868.0,96867.0,0.82597975]
[1732929227290,0.00409776,96868.0,96867.0,0.83798083]
[1732929227994,0.00409776,96868.0,96867.0,0.837986]
[1732929228383,1e-08,96868.0,96867.0,0.837986]
[1732929229394,1e-08,96868.0,96867.0,0.8455877]
[1732929230193,1e-08,96868.0,96867.0,0.59877805]
[1732929230897,0.00011399,96876.0,96875.0,0.05159]
[1732929231089,0.00011399,96876.0,96875.0,0.552217]
[1732929231492,0.00011399,96876.0,96875.0,0.79900526]
[1732929231686,0.00011399,96876.0,96875.0,0.55228135]
[1732929231893,0.00011399,96876.0,96875.0,0.56179265]
[1732929232299,0.00011399,96876.0,96875.0,0.59534724]
[1732929232685,0.00011399,96876.0,96875.0,0.56279265]
[1732929232888,0.00011399,96876.0,96875.0,0.06496135]
[1732929232889,0.05170299,96876.0,96875.0,0.06496135]
[1732929233197,0.05170299,96876.0,96875.0,0.00575772]
[1732929233492,0.051599,96860.0,96859.0,0.051598]
[1732929233883,0.3608,96864.0,96854.0,0.1128451]
[1732929234085,0.3608,96864.0,96848.0,0.30848652]
[1732929234086,0.3608,96856.0,96848.0,0.30848652]
[1732929234288,0.051602,96851.0,96848.0,0.30848652]
[1732929234497,0.051602,96851.0,96850.0,0.2983911]
[1732929235995,0.051602,96851.0,96850.0,0.2993911]
[1732929237088,0.051602,96851.0,96850.0,0.3003911]
[1732929238091,0.051602,96851.0,96850.0,0.053603]
[1732929240096,0.3608,96856.0,96855.0,0.0516]
[1732929240398,0.4124,96856.0,96855.0,0.0516]
[1732929242592,0.3608,96856.0,96855.0,0.0516]
[1732929242902,0.3618,96856.0,96855.0,0.0516]
[1732929244007,0.001,96856.0,96855.0,0.0516]
[1732929245601,0.0328,96869.0,96868.0,0.051593]
[1732929245896,0.0328,96869.0,96868.0,0.06396803]
[1732929247002,0.0338,96869.0,96868.0,0.06496803]
[1732929247201,0.001,96869.0,96868.0,0.06496803]
[1732929247400,0.00011399,96876.0,96868.0,0.07447603]
[1732929247592,0.00011399,96876.0,96875.0,0.05159]
[1732929247899,0.00011399,96876.0,96875.0,0.05634914]
[1732929248804,0.00311399,96876.0,96875.0,0.06405039]
[1732929249699,0.00311399,96876.0,96875.0,0.06505039]
[1732929252418,0.00311399,96876.0,96875.0,0.05734914]
[1732929252603,0.00311399,96876.0,96875.0,0.06528739]
[1732929252801,0.00311399,96876.0,96875.0,0.06428739]
[1732929252996,0.00311399,96876.0,96875.0,0.05159]
[1732929253599,0.05470299,96876.0,96875.0,0.05159]
[1732929254511,0.05470299,96876.0,96870.0,0.051592]
[1732929254512,0.00311399,96876.0,96870.0,0.051592]
[1732929254803,0.412393,96871.0,96870.0,0.051592]
[1732929257599,0.413393,96871.0,96870.0,0.051592]
[1732929261007,0.413393,96871.0,96870.0,0.06412781]
[1732929262598,0.413393,96871.0,96870.0,0.06412035]
[1732929263707,0.3618,96871.0,96870.0,0.06412035]
[1732929264413,0.3618,96871.0,96870.0,0.07392747]
[1732929266110,0.3618,96871.0,96870.0,0.07201088]
[1732929266306,0.3618,96871.0,96870.0,0.07416544]
[1732929266507,0.3618,96871.0,96870.0,0.07427809]
[1732929267314,0.413392,96871.0,96870.0,0.07427809]
[1732929269111,0.413392,96871.0,96870.0,0.06441328]
[1732929269614,0.413392,96871.0,96870.0,0.07421212]
[1732929270617,0.3618,96871.0,96870.0,0.07421212]
[1732929272408,0.001,96871.0,96870.0,0.07421212]
[1732929272616,0.001,96871.0,96870.0,0.20165212]
[1732929274721,0.001,96871.0,96870.0,0.179032]
[1732929275316,0.001,96871.0,96870.0,0.051592]
[1732929275624,0.413392,96871.0,96870.0,0.051592]
[1732929275921,0.413392,96871.0,96870.0,0.05646252]
[1732929281211,0.540832,96871.0,96870.0,0.00487052]
[1732929281428,0.0516,96855.0,96850.0,0.00154862]
[1732929281626,0.90064,96855.0,96854.0,0.19360507]
[1732929281832,0.90064,96855.0,96854.0,0.19360522]
[1732929283128,0.90064,96855.0,96854.0,0.19760522]
[1732929283626,0.90064,96855.0,96854.0,0.20060522]
[1732929287621,0.91276821,96855.0,96854.0,0.20060522]
[1732929289931,0.91276821,96855.0,96854.0,0.19270776]
[1732929290828,0.91276821,96855.0,96854.0,0.24430876]
[1732929292740,0.78532821,96855.0,96854.0,0.24430876]
[1732929293930,0.3608,96855.0,96854.0,0.24430876]
[1732929294435,0.3608,96855.0,96854.0,0.058601]
[1732929294436,0.4124,96855.0,96854.0,0.058601]
[1732929296236,0.4124,96855.0,96854.0,0.007]
[1732929298342,0.4124,96855.0,96854.0,0.01163944]
[1732929300032,0.3608,96855.0,96854.0,0.06323944]
[1732929300433,0.3608,96855.0,96854.0,0.0710301]
[1732929300629,0.3608,96855.0,96854.0,0.0194301]
[1732929303363,0.3608,96855.0,96854.0,0.007]
[1732929303551,0.1274,96862.0,96854.0,0.01188105]
[1732929303738,0.36148,96870.0,96855.0,0.01269204]
[1732929303739,0.3608,96870.0,96855.0,0.01269204]
[1732929304051,0.3608,96870.0,96869.0,0.051592]
[1732929304251,0.3608,96870.0,96869.0,0.05940299]
[1732929304544,0.41250299,96876.0,96875.0,0.051589]
[1732929304545,0.01263577,96876.0,96875.0,0.051589]
[1732929304741,0.01263577,96876.0,96875.0,0.05647005]
[1732929305740,0.19830039,96876.0,96875.0,0.05647005]
[1732929306050,0.01463577,96876.0,96875.0,0.05647005]
[1732929306641,0.01663577,96876.0,96875.0,0.05647005]
[1732929307149,0.01663577,96876.0,96875.0,0.00488105]
[1732929307542,0.20030039,96876.0,96875.0,0.00488105]
[1732929307750,0.01663577,96876.0,96875.0,0.00488105]
[1732929309954,0.06822477,96876.0,96875.0,0.00488302]
[1732929311249,0.051596,96862.0,96861.0,0.051596]
[1732929311554,0.412396,96862.0,96861.0,0.01268627]
[1732929311945,0.412396,96862.0,96861.0,0.00487883]
[1732929312446,0.412396,96862.0,96861.0,0.00587883]
[1732929312746,0.412396,96862.0,96861.0,0.00687883]
[1732929313147,0.773196,96862.0,96861.0,0.00687883]
[1732929313747,0.773196,96862.0,96861.0,0.002]
[1732929315453,0.051617,96832.0,96831.0,0.0323]
[1732929315658,0.051618,96831.0,96830.0,0.18534019]
[1732929318378,0.051618,96831.0,96830.0,0.20134019]
[1732929319256,0.051618,96831.0,96830.0,0.19434019]
[1732929319562,0.051618,96831.0,96830.0,0.19534019]
[1732929320063,0.051618,96831.0,96830.0,0.18634019]
[1732929320362,0.051618,96831.0,96830.0,0.18834019]
[1732929322260,0.412418,96831.0,96830.0,0.18834019]
[1732929322565,0.539858,96831.0,96830.0,0.18834019]
[1732929324053,0.412418,96831.0,96830.0,0.18834019]
[1732929324359,0.539858,96831.0,96830.0,0.18834019]
[1732929324760,0.412418,96831.0,96830.0,0.18834019]
[1732929325059,0.539858,96831.0,96830.0,0.18834019]
[1732929325362,0.900658,96831.0,96830.0,0.13844019]
[1732929325559,0.05162,96827.0,96826.0,0.24708392]
[1732929326650,0.05162,96827.0,96826.0,0.24808392]
[1732929326859,0.35162,96827.0,96826.0,0.24908392]
[1732929327055,0.05162,96827.0,96826.0,0.24908392]
[1732929328361,0.05162,96827.0,96826.0,0.24708392]
[1732929328566,0.05462,96827.0,96826.0,0.24708392]
[1732929329360,0.05562,96827.0,96826.0,0.24708392]
[1732929330868,0.18306,96827.0,96826.0,0.24708392]
[1732929332668,0.05562,96827.0,96826.0,0.24708392]
[1732929332863,0.18306,96827.0,96826.0,0.24708392]
[1732929333068,0.051624,96820.0,96819.0,9.322e-05]
[1732929333270,0.412424,96820.0,96819.0,9.322e-05]
[1732929335069,0.412424,96820.0,96819.0,0.00109322]
[1732929335369,0.42480911,96820.0,96819.0,0.00109322]
[1732929336377,0.55224911,96820.0,96819.0,0.00109322]
[1732929337472,0.55224911,96820.0,96819.0,0.05271722]
[1732929337667,0.539864,96820.0,96819.0,0.05271722]
[1732929339267,0.412424,96820.0,96819.0,0.05271722]
[1732929339468,0.3608,96820.0,96819.0,0.05271722]
[1732929339670,0.3608,96828.0,96820.0,0.051624]
[1732929339868,0.3608,96828.0,96827.0,0.05162]
[1732929340289,0.412419,96828.0,96827.0,0.05162]
[1732929340983,0.3608,96828.0,96827.0,0.05162]
[1732929341681,0.3638,96828.0,96827.0,0.05162]
[1732929341987,0.3638,96828.0,96827.0,0.0562861]
[1732929342277,0.3658,96828.0,96827.0,0.0562861]
[1732929342671,0.3658,96828.0,96827.0,0.05162]
[1732929345573,0.3658,96828.0,96827.0,0.05623583]
[1732929347379,0.3658,96828.0,96827.0,0.05162]
[1732929347579,0.3658,96828.0,96827.0,0.05622497]
[1732929349885,0.3658,96828.0,96827.0,0.0562985]
[1732929351478,0.3658,96828.0,96827.0,0.07335698]
[1732929352184,0.005,96828.0,96827.0,0.07335698]
[1732929353160,0.04886399,96828.0,96827.0,0.07335698]
[1732929353275,0.04886399,96828.0,96827.0,0.30342092]
[1732929353478,0.04886399,96828.0,96827.0,0.31096992]
[1732929355281,0.04886399,96828.0,96827.0,0.06388634]
[1732929356483,0.04886399,96828.0,96827.0,0.05633734]
[1732929357976,0.04886399,96828.0,96827.0,0.05162]
[1732929358476,0.04886399,96828.0,96827.0,0.05620816]
[1732929360778,0.40966399,96828.0,96827.0,0.05620816]
[1732929365582,0.40966399,96828.0,96827.0,0.05162]
[1732929365807,0.3608,96828.0,96827.0,0.05162]
[1732929368294,0.36092463,96831.0,96827.0,0.05162]
[1732929368295,0.00012463,96831.0,96830.0,0.051618]
[1732929368490,0.00012463,96831.0,96830.0,0.0561143]
[1732929368797,0.00012463,96831.0,96830.0,0.06331052]
[1732929369788,0.00212463,96831.0,96830.0,0.06331052]
[1732929370298,6.3e-07,96831.0,96830.0,0.06331052]
[1732929370877,6.3e-07,96831.0,96830.0,0.39688029]
[1732929370991,0.3608,96845.0,96844.0,0.051611]
[1732929371182,0.3608,96845.0,96844.0,0.179011]
[1732929371702,0.3608,96845.0,96844.0,0.36096916]
[1732929371887,0.41241,96845.0,96844.0,0.051611]
[1732929372089,0.41241,96845.0,96844.0,0.29899785]
[1732929372282,0.41241,96845.0,96844.0,0.29999785]
[1732929372283,0.41641,96845.0,96844.0,0.29999785]
[1732929372493,0.41841,96845.0,96844.0,0.052611]
[1732929373691,0.41841,96845.0,96844.0,0.001]
[1732929376090,0.41841,96845.0,96844.0,0.052611]
[1732929376296,0.43041387,96845.0,96844.0,0.052611]
[1732929376796,0.55781387,96845.0,96844.0,0.052611]
[1732929378389,0.3608,96847.0,96844.0,0.001]
[1732929378694,0.05161,96845.0,96844.0,0.001]
[1732929379598,0.05161,96845.0,96844.0,0.052611]
[1732929383605,0.05161,96845.0,96844.0,0.001]
[1732929385499,0.3608,96846.0,96832.0,0.24731179]
[1732929385706,0.051617,96833.0,96832.0,0.24731179]
[1732929386912,0.052617,96833.0,96832.0,0.24731179]
[1732929387205,0.051619,96829.0,96828.0,0.051619]
[1732929388802,0.053619,96829.0,96828.0,0.051619]
[1732929395799,0.053619,96829.0,96828.0,0.05614007]
[1732929396408,0.053619,96829.0,96828.0,0.05614011]
[1732929402807,0.053619,96829.0,96828.0,0.051619]
[1732929410926,0.002,96829.0,96828.0,0.05613447]
[1732929411625,0.002,96829.0,96828.0,0.051619]
[1732929411817,0.002,96829.0,96828.0,0.05613512]
[1732929412225,0.002,96829.0,96828.0,0.06340557]
[1732929413224,0.002,96829.0,96828.0,0.06341401]
[1732929417922,0.002,96829.0,96828.0,0.051619]
[1732929419030,0.002,96829.0,96828.0,0.05609838]
[1732929419334,0.002,96829.0,96828.0,0.05609828]
[1732929419924,0.002,96829.0,96828.0,0.051619]
[1732929420226,0.002,96829.0,96828.0,0.05608912]
[1732929420621,0.002,96829.0,96828.0,0.05608893]
[1732929420823,0.002,96829.0,96828.0,0.08658893]
[1732929422322,0.002,96829.0,96828.0,0.08655751]
[1732929422732,0.002,96829.0,96828.0,0.05605751]
[1732929423219,0.002,96829.0,96828.0,0.051619]
[1732929423424,0.002,96829.0,96828.0,0.05606162]
[1732929424127,0.002,96829.0,96828.0,0.18342162]
[1732929425423,0.0001014,96848.0,96847.0,0.051609]
[1732929425835,0.0001014,96848.0,96847.0,0.05615021]
[1732929427431,0.0001014,96848.0,96847.0,0.41695021]
[1732929428029,0.0001014,96848.0,96847.0,0.41795021]
[1732929428833,0.0001014,96848.0,96847.0,0.41787746]
[1732929429033,0.0001014,96848.0,96847.0,0.413409]
[1732929429631,0.0001014,96848.0,96847.0,0.3618]
[1732929429933,0.0517104,96848.0,96847.0,0.3618]
[1732929430133,0.0517104,96848.0,96847.0,0.413409]
[1732929431024,0.0517104,96848.0,96847.0,0.3618]
[1732929432069,0.0517104,96848.0,96847.0,0.413409]
[1732929435439,0.0517104,96848.0,96847.0,0.3618]
[1732929436640,0.0517104,96848.0,96847.0,0.413409]
[1732929437836,0.0517104,96848.0,96847.0,0.052609]
[1732929438930,0.0517104,96848.0,96847.0,0.001]
[1732929439341,0.4125104,96848.0,96847.0,0.001]
[1732929439645,0.051619,96828.0,96819.0,0.2474435]
[1732929439839,0.051619,96828.0,96826.0,0.05162]
[1732929443439,0.0305,96831.0,96830.0,0.051618]
[1732929444445,0.082118,96831.0,96830.0,0.051618]
[1732929444631,0.0305,96831.0,96830.0,0.051618]
[1732929444837,0.0315,96831.0,96830.0,0.051618]
[1732929445248,0.001,96831.0,96830.0,0.051618]
[1732929448043,0.001,96831.0,96830.0,0.05605869]
[1732929451951,0.12732,96850.0,96847.0,0.051609]
[1732929452135,0.01206618,96849.0,96847.0,0.051609]
[1732929452642,0.02207686,96848.0,96847.0,0.051609]
[1732929453256,0.02207686,96848.0,96847.0,0.05611084]
[1732929453459,0.02307686,96848.0,96847.0,0.05711084]
[1732929455249,0.02307686,96848.0,96847.0,0.05717653]
[1732929455948,0.02307686,96848.0,96847.0,0.052609]
[1732929457952,0.02307686,96848.0,96847.0,0.23814096]
[1732929458141,0.02307686,96848.0,96847.0,0.052609]
[1732929458338,0.051599,96866.0,96847.0,0.052609]
[1732929458339,0.12728,96865.0,96864.0,0.0516]
[1732929459147,0.17888,96865.0,96864.0,0.0516]
[1732929459447,0.05170558,96865.0,96864.0,0.0516]
[1732929460459,0.00010558,96865.0,96864.0,0.0516]
[1732929461556,0.05170558,96865.0,96864.0,0.0516]
[1732929461950,0.00010558,96865.0,96864.0,0.0516]
[1732929462154,0.00010558,96865.0,96864.0,0.0526]
[1732929464652,0.00010558,96865.0,96864.0,0.0516]
[1732929465047,0.00010558,96865.0,96858.0,0.3608]
[1732929465247,0.051602,96861.0,96858.0,0.412403]
[1732929465454,0.051602,96861.0,96859.0,0.05621373]
[1732929465655,0.051602,96861.0,96860.0,0.00461173]
[1732929465854,0.051602,96861.0,96838.0,0.00154868]
[1732929465855,0.051606,96853.0,96838.0,0.00154868]
[1732929466156,0.051607,96851.0,96850.0,0.19729775]
[1732929466361,0.051614,96839.0,96838.0,0.00154868]
[1732929466552,0.539694,96839.0,96838.0,0.00154868]
[1732929468156,0.542694,96839.0,96838.0,0.00254868]
[1732929473265,0.5548372,96839.0,96838.0,0.00254868]
[1732929474767,0.5548372,96839.0,96838.0,0.001]
[1732929480066,0.5548772,96839.0,96838.0,0.001]
[1732929483577,0.5548372,96839.0,96838.0,1e-06]
[1732929486270,0.63584316,96839.0,96838.0,1e-06]
[1732929486473,0.5548372,96839.0,96838.0,1e-06]
[1732929488378,0.5548372,96839.0,96823.0,0.0317]
[1732929488585,0.051622,96824.0,96823.0,0.0317]
[1732929488772,0.178902,96824.0,96823.0,0.0317]
[1732929491888,0.051622,96824.0,96823.0,0.0317]
[1732929492087,0.178902,96824.0,96823.0,0.0317]
[1732929492388,0.178902,96824.0,96819.0,2.2e-07]
[1732929492389,0.051624,96820.0,96819.0,2.2e-07]
[1732929493385,0.05173226,96820.0,96819.0,2.2e-07]
[1732929493686,0.05173226,96820.0,96819.0,0.00100022]
[1732929495879,0.05173226,96820.0,96819.0,2.2e-07]
[1732929496083,0.05273226,96820.0,96819.0,2.2e-07]
[1732929497286,0.06469006,96820.0,96819.0,2.2e-07]
[1732929503693,0.08535885,96820.0,96819.0,2.2e-07]
[1732929509290,0.16751029,96820.0,96819.0,2.2e-07]
[1732929510000,0.08535885,96820.0,96819.0,2.2e-07]
[1732929511302,0.44615885,96820.0,96819.0,2.2e-07]
[1732929513509,0.44755885,96820.0,96819.0,2.2e-07]
[1732929514706,0.62538641,96820.0,96819.0,2.2e-07]
[1732929516197,0.44755885,96820.0,96819.0,2.2e-07]
[1732929519707,0.44755885,96820.0,96819.0,0.00487976]
[1732929520403,0.44755885,96820.0,96819.0,2.2e-07]
[1732929520600,0.44755885,96820.0,96819.0,0.0048811]
[1732929521012,0.63312482,96820.0,96819.0,0.0048811]
[1732929521400,0.44897726,96820.0,96819.0,0.0048811]
[1732929522909,0.57625726,96820.0,96819.0,0.0048811]
[1732929523213,0.42830847,96820.0,96819.0,0.0565051]
[1732929523396,0.2079498,96820.0,96819.0,0.0643328]
[1732929523596,0.05444241,96820.0,96819.0,0.0643328]
[1732929523809,0.06662987,96820.0,96819.0,0.0643328]
[1732929524307,7.349e-05,96820.0,96819.0,0.02262431]
[1732929524501,0.051623,96822.0,96821.0,0.051622]
[1732929524803,0.15350739,96825.0,96821.0,0.07424609]
[1732929524999,0.16597162,96825.0,96822.0,0.05949098]
[1732929525200,0.051622,96823.0,96822.0,0.051622]
[1732929525413,0.051622,96823.0,96822.0,0.06436451]
[1732929525711,0.05172624,96823.0,96822.0,0.06436451]
[1732929525911,0.05172624,96823.0,96822.0,0.01274251]
[1732929526809,0.05372624,96823.0,96822.0,0.01274251]
[1732929527317,0.05472624,96823.0,96822.0,0.01274251]
[1732929527704,0.05472624,96823.0,96822.0,0.00784205]
[1732929527907,0.05472624,96823.0,96822.0,0.00489423]
[1732929530808,0.051624,96820.0,96819.0,2.2e-07]
[1732929531910,0.052624,96820.0,96819.0,2.2e-07]
[1732929537907,0.052624,96820.0,96819.0,0.00494073]
[1732929540519,0.052624,96820.0,96819.0,0.01282549]
[1732929541022,0.052624,96820.0,96819.0,0.01281276]
[1732929541720,0.052624,96820.0,96807.0,0.00154949]
[1732929541721,0.413424,96820.0,96807.0,0.00154949]
[1732929542026,0.051634,96801.0,96800.0,0.1]
[1732929542321,0.178914,96801.0,96800.0,0.1]
[1732929543913,0.178914,96801.0,96800.0,0.104]
[1732929544119,0.178914,96801.0,96791.0,0.0309323]
[1732929544120,0.051637,96795.0,96791.0,0.0001323]
[1732929544321,0.412439,96792.0,96791.0,0.0001323]
[1732929544621,0.539679,96792.0,96791.0,0.0001323]
[1732929545515,0.543679,96792.0,96791.0,0.0001323]
[1732929546016,0.49204,96792.0,96791.0,0.0001323]
[1732929546210,0.49204,96792.0,96791.0,0.0061323]
[1732929546414,0.543679,96792.0,96791.0,0.0061323]
[1732929546827,0.543679,96792.0,96784.0,0.00037]
[1732929546828,0.051642,96785.0,96784.0,0.00037]
[1732929548221,0.052642,96785.0,96784.0,0.00037]
[1732929548725,0.05165,96772.0,96770.0,0.00011045]
[1732929549026,0.12724,96779.0,96770.0,0.00011045]
[1732929549228,0.05165,96771.0,96770.0,0.00011045]
[1732929550021,0.05165,96771.0,96770.0,0.00211045]
[1732929550723,0.17889,96771.0,96770.0,0.00011045]
[1732929550922,0.17889,96771.0,96770.0,0.00211045]
[1732929551626,0.21219,96771.0,96770.0,0.00211045]
[1732929551827,0.21219,96771.0,96770.0,0.00811045]
[1732929552019,0.24359,96771.0,96770.0,0.00811045]
[1732929553434,0.24359,96771.0,96770.0,4.5e-07]
[1732929554319,0.21029,96771.0,96770.0,4.5e-07]
[1732929555033,0.17889,96771.0,96770.0,4.5e-07]
[1732929555725,0.051659,96755.0,96751.0,0.08346]
[1732929556030,0.051659,96755.0,96752.0,0.00494918]
[1732929556231,0.051659,96754.0,96753.0,0.00494918]
[1732929558430,0.052659,96754.0,96753.0,0.01394918]
[1732929558825,0.052659,96754.0,96753.0,0.01894918]
[1732929559518,0.052659,96754.0,96753.0,0.009]
[1732929559724,0.052659,96754.0,96753.0,0.012]
[1732929559918,0.413459,96754.0,96753.0,0.012]
[1732929560531,0.413459,96754.0,96753.0,0.01]
[1732929561122,0.413459,96754.0,96753.0,0.01488009]
[1732929563434,0.413459,96754.0,96753.0,0.01482648]
[1732929566094,0.413459,96754.0,96753.0,0.06644501]
[1732929566537,0.413459,96754.0,96753.0,0.07409764]
[1732929567330,0.001,96754.0,96753.0,0.07409764]
[1732929567529,0.052659,96754.0,96753.0,0.07409764]
[1732929567734,0.052659,96754.0,96753.0,0.0838711]
[1732929568128,0.052659,96754.0,96753.0,0.06644501]
[1732929568432,0.23933988,96763.0,96753.0,0.07419537]
[1732929568632,0.051658,96756.0,96755.0,0.051658]
[1732929568837,0.051658,96756.0,96755.0,0.05644401]
[1732929569432,0.051658,96756.0,96755.0,0.00478601]
[1732929570033,0.051655,96762.0,96755.0,0.00483215]
[1732929570232,0.051655,96761.0,96756.0,0.00483215]
[1732929570433,0.051655,96762.0,96757.0,0.00483215]
[1732929570633,0.001,96756.0,96755.0,0.057658]
[1732929570833,0.001,96756.0,96755.0,0.06246077]
[1732929571042,0.052658,96756.0,96755.0,0.06246077]
[1732929571735,0.051658,96756.0,96755.0,0.06546077]
[1732929572130,0.051658,96756.0,96755.0,0.07314419]
[1732929573242,0.051658,96756.0,96755.0,0.06714419]
[1732929573434,0.052658,96756.0,96755.0,0.07314419]
[1732929575341,0.052658,96756.0,96755.0,0.08273515]
[1732929577839,0.052658,96756.0,96755.0,0.03107715]
[1732929578270,0.052658,96756.0,96755.0,0.08765142]
[1732929578642,0.052658,96756.0,96755.0,0.08273515]
[1732929578836,0.052658,96756.0,96755.0,0.08765143]
[1732929579142,0.052658,96756.0,96755.0,0.08273515]
[1732929581132,0.413458,96756.0,96755.0,0.08273515]
[1732929582648,0.413458,96756.0,96755.0,0.0875804]
[1732929582840,0.42554218,96756.0,96755.0,0.0359224]
[1732929583044,0.42554218,96756.0,96755.0,0.03107715]
[1732929583451,0.42554218,96756.0,96755.0,0.48368901]
[1732929583645,0.42554218,96756.0,96755.0,0.08273515]
[1732929586648,0.37388418,96756.0,96755.0,0.08273515]
[1732929587745,0.18412381,96763.0,96755.0,0.38228619]
[1732929587954,0.3608,96776.0,96763.0,0.051654]
[1732929587955,0.18412381,96771.0,96763.0,0.051654]
[1732929588136,0.18412381,96771.0,96756.0,0.20080804]
[1732929588137,0.24015375,96773.0,96772.0,0.051649]
[1732929588343,0.18412381,96773.0,96772.0,0.06413519]
[1732929588569,0.18412381,96773.0,96772.0,0.01248619]
[1732929588752,0.23577281,96773.0,96772.0,0.06413519]
[1732929590253,0.23577281,96773.0,96772.0,0.07366623]
[1732929590551,0.23777281,96773.0,96772.0,0.07366623]
[1732929590853,0.18812381,96773.0,96772.0,0.07366623]
[1732929591550,0.004,96773.0,96772.0,0.07366623]
[1732929592048,0.004,96773.0,96772.0,0.47356951]
[1732929592443,0.01235862,96776.0,96772.0,0.42192051]
[1732929592644,0.051641,96787.0,96777.0,0.051647]
[1732929592862,0.12724,96788.0,96777.0,0.07366423]
[1732929593348,0.1287904,96791.0,96777.0,0.07366423]
[1732929593557,0.0015504,96791.0,96777.0,0.07366423]
[1732929593754,0.05602994,96790.0,96777.0,0.06886146]
[1732929594054,0.00212706,96778.0,96777.0,0.45088084]
[1732929594256,0.01225261,96785.0,96777.0,0.57812084]
[1732929594443,0.0015504,96791.0,96784.0,0.412443]
[1732929594753,0.0015504,96791.0,96790.0,0.05164]
[1732929594955,0.0015504,96791.0,96790.0,0.23714302]
[1732929595255,0.0015504,96791.0,96790.0,0.05164]
[1732929595554,0.05330809,96791.0,96790.0,0.05164]
[1732929596058,0.05330809,96791.0,96790.0,0.07352407]
[1732929597050,0.06584245,96791.0,96790.0,0.07352407]
[1732929597551,0.07484245,96791.0,96790.0,0.0964084]
[1732929598046,0.07484245,96791.0,96790.0,0.0840403]
[1732929598250,0.07484245,96791.0,96790.0,0.07452407]
[1732929600152,0.07484245,96791.0,96790.0,0.02288407]
[1732929602350,0.07484245,96791.0,96790.0,0.07452407]
[1732929604957,0.07484245,96791.0,96790.0,0.02288407]
[1732929607168,0.07484245,96791.0,96790.0,0.001]
[1732929613667,0.43564245,96791.0,96790.0,0.001]
[1732929614470,0.56288245,96791.0,96790.0,0.001]
[1732929615180,0.51124345,96791.0,96790.0,0.05264]
[1732929615672,0.38400345,96791.0,96790.0,0.05746293]
[1732929616676,0.43564245,96791.0,96790.0,0.05746293]
[1732929616878,0.38400345,96791.0,96790.0,0.05746293]
[1732929617374,0.43564245,96791.0,96790.0,0.06517079]
[1732929617764,0.38400345,96791.0,96790.0,0.06517079]
[1732929619883,0.38400345,96791.0,96790.0,0.05517079]
[1732929620682,0.37146909,96791.0,96790.0,0.05517079]
[1732929621383,0.37146909,96791.0,96790.0,0.04264]
[1732929622687,0.01066909,96791.0,96790.0,0.04264]
[1732929623478,0.00911869,96791.0,96790.0,0.04264]
[1732929624583,0.01011869,96791.0,96790.0,0.04364]
[1732929628298,0.01011869,96791.0,96790.0,0.05799944]
[1732929628489,0.01011869,96791.0,96790.0,0.06565736]
[1732929628986,0.01011869,96791.0,96790.0,0.25116038]
[1732929629182,0.15353391,96803.0,96802.0,0.051633]
[1732929629376,0.15353391,96803.0,96802.0,0.06407628]
[1732929630083,0.15353391,96803.0,96802.0,0.0736286]
[1732929630280,0.15366177,96803.0,96802.0,0.06407628]
[1732929630586,0.15366177,96803.0,96802.0,0.09627628]
[1732929630891,0.16666177,96803.0,96802.0,0.09827628]
[1732929631282,0.16066177,96803.0,96802.0,0.09727628]
[1732929631489,0.15966177,96803.0,96802.0,0.09727628]
[1732929631684,0.16566177,96803.0,96802.0,0.09727628]
[1732929631881,0.16566177,96803.0,96802.0,0.06507628]
[1732929632191,0.16566177,96803.0,96800.0,0.06830762]
[1732929632192,0.93931078,96803.0,96800.0,0.06830762]
[1732929632385,0.051638,96794.0,96793.0,0.20918507]
[1732929632685,0.539638,96794.0,96793.0,0.20918507]
[1732929633796,0.542638,96794.0,96793.0,0.20918507]
[1732929635379,0.051642,96785.0,96784.0,0.051642]
[1732929635590,0.178842,96785.0,96784.0,0.051642]
[1732929635990,0.051647,96780.0,96779.0,0.051645]
[1732929636293,0.051649,96775.0,96774.0,0.051648]
[1732929637192,0.051647,96780.0,96779.0,0.051644]
[1732929638190,0.06417378,96780.0,96779.0,0.051644]
[1732929638685,0.06417378,96780.0,96779.0,0.053644]
[1732929641590,0.06417378,96780.0,96779.0,0.051644]
[1732929641793,0.06417378,96780.0,96779.0,0.053644]
[1732929642496,0.06417378,96780.0,96779.0,0.06118912]
[1732929643195,0.06417378,96780.0,96779.0,0.05918912]
[1732929643394,0.06417378,96780.0,96779.0,0.051644]
[1732929643395,0.01352678,96780.0,96779.0,0.051644]
[1732929644097,0.01452678,96780.0,96779.0,0.051644]
[1732929644299,0.01452678,96780.0,96779.0,0.06402614]
[1732929644597,0.01594567,96780.0,96779.0,0.06408336]
[1732929645593,0.01594567,96780.0,96779.0,0.05642785]
[1732929646498,0.00341889,96780.0,96779.0,0.05642785]
[1732929646694,0.00341889,96780.0,96779.0,0.06408383]
[1732929651597,0.00341889,96780.0,96779.0,0.05642541]
[1732929651802,0.00341889,96780.0,96779.0,0.06407703]
[1732929654115,0.00341889,96780.0,96779.0,0.05932544]
[1732929654495,0.00341889,96780.0,96779.0,0.06412549]
[1732929654706,0.00341889,96780.0,96779.0,0.06409317]
[1732929655163,0.00341889,96780.0,96779.0,0.42489317]
[1732929656718,0.00341889,96780.0,96779.0,0.43445931]
[1732929657009,0.00341889,96780.0,96779.0,0.42489317]
[1732929658906,0.00341889,96780.0,96779.0,0.42010555]
[1732929659141,0.00341889,96780.0,96779.0,0.42200331]
[1732929659373,0.00341889,96780.0,96779.0,0.43442736]
[1732929659519,0.00341889,96780.0,96779.0,0.42972233]